bitfinex/quotes_BTCUSD_20260126
["timestamp","ask_amount","ask_price","bid_price","bid_amount"]
[1769397922338,0.01143053,87485.0,87475.0,0.12309919]
[1769397922562,0.01598151,87488.0,87475.0,0.12309919]
[1769397922789,0.01143026,87487.0,87475.0,0.12309919]
[1769397923015,0.01598151,87488.0,87475.0,0.12309919]
[1769397923245,0.00455138,87488.0,87475.0,0.12309919]
[1769397924027,0.01598151,87488.0,87475.0,0.12309919]
[1769397924368,0.01143026,87487.0,87475.0,0.12309919]
[1769397925009,0.01598151,87488.0,87475.0,0.12309919]
[1769397925233,0.01143053,87485.0,87475.0,0.12309919]
[1769397925632,0.0114304,87486.0,87475.0,0.12309919]
[1769397926055,0.01143026,87487.0,87475.0,0.12309919]
[1769397926465,0.01143053,87485.0,87475.0,0.12279919]
[1769397926687,0.01143026,87487.0,87475.0,0.12279919]
[1769397926828,0.00455138,87488.0,87475.0,0.12279919]
[1769397927481,0.01143053,87485.0,87475.0,0.12279919]
[1769397927678,0.00455138,87488.0,87475.0,0.12279919]
[1769397927679,0.01143026,87487.0,87475.0,0.12279919]
[1769397927898,0.00455138,87488.0,87475.0,0.12279919]
[1769397928108,0.01598151,87488.0,87475.0,0.12279919]
[1769397928318,0.01143053,87485.0,87475.0,0.12279919]
[1769397928508,0.01143066,87484.0,87475.0,0.12279919]
[1769397928669,0.01143053,87485.0,87475.0,0.12279919]
[1769397928872,0.01143066,87484.0,87475.0,0.12279919]
[1769397929075,0.01143053,87485.0,87475.0,0.12279919]
[1769397929843,0.01143079,87483.0,87475.0,0.12279919]
[1769397930262,0.01143053,87485.0,87475.0,0.12279919]
[1769397930612,0.01143066,87484.0,87475.0,0.12279919]
[1769397930941,0.01143053,87485.0,87475.0,0.12279919]
[1769397931292,0.01143066,87484.0,87475.0,0.12279919]
[1769397931637,0.00340361,87489.0,87475.0,0.12279919]
[1769397931839,0.01143026,87487.0,87476.0,0.01472181]
[1769397932038,0.01143013,87488.0,87475.0,0.12279919]
[1769397932270,0.01143066,87484.0,87475.0,0.12279919]
[1769397932550,0.01143026,87487.0,87475.0,0.12279919]
[1769397932988,0.0114304,87486.0,87475.0,0.12279919]
[1769397933220,0.01143053,87485.0,87475.0,0.12279919]
[1769397933726,0.0114304,87486.0,87475.0,0.12279919]
[1769397933859,0.01483401,87486.0,87475.0,0.12279919]
[1769397934066,0.01143079,87483.0,87475.0,0.12279919]
[1769397934265,0.01143053,87485.0,87475.0,0.12279919]
[1769397934488,0.01143079,87483.0,87475.0,0.12279919]
[1769397934688,0.01143144,87478.0,87474.0,5.885e-05]
[1769397934891,0.01598282,87478.0,87474.0,5.885e-05]
[1769397935254,0.00455138,87478.0,87474.0,5.885e-05]
[1769397935454,0.01598282,87478.0,87474.0,5.885e-05]
[1769397936280,0.00455138,87476.0,87474.0,5.885e-05]
[1769397936871,0.01598269,87479.0,87474.0,5.885e-05]
[1769397937057,0.01143144,87478.0,87474.0,5.885e-05]
[1769397937801,0.01143157,87477.0,87474.0,5.885e-05]
[1769397938505,0.09082072,87506.0,87474.0,5.885e-05]
[1769397938907,4.552e-05,87476.0,87474.0,5.885e-05]
[1769397939087,4.552e-05,87476.0,87471.0,0.0001904]
[1769397939291,4.552e-05,87475.0,87471.0,0.0001904]
[1769397940705,8.574e-05,87476.0,87471.0,0.0001904]
[1769397941740,0.00013126,87476.0,87471.0,0.0001904]
[1769397942200,0.01156296,87476.0,87471.0,0.0001904]
[1769397943053,0.01143183,87475.0,87471.0,0.0001904]
[1769397943480,0.01143183,87475.0,87452.0,0.0002]
[1769397943481,0.05716114,87472.0,87459.0,0.0001904]
[1769397943687,0.01143262,87469.0,87459.0,0.0001477]
[1769397944114,0.01143249,87470.0,87459.0,0.13366875]
[1769397944539,0.01143209,87473.0,87460.0,0.13352105]
[1769397944766,0.06859336,87472.0,87460.0,0.13352105]
[1769397944977,0.01143262,87469.0,87460.0,0.13352105]
[1769397945430,0.01143236,87471.0,87460.0,0.13352105]
[1769397945632,0.01143262,87469.0,87460.0,0.13352105]
[1769397946054,0.01143262,87469.0,87461.0,0.0008751]
[1769397946479,0.00450585,87473.0,87461.0,0.0008751]
[1769397946681,0.03293426,87473.0,87461.0,0.0008751]
[1769397946854,0.01143222,87472.0,87460.0,0.13352105]
[1769397947058,0.02150217,87473.0,87460.0,0.13297841]
[1769397947265,0.01699632,87473.0,87460.0,0.13297841]
[1769397947671,0.01765264,87474.0,87460.0,0.13297841]
[1769397948069,0.0290846,87474.0,87460.0,0.13297841]
[1769397948274,0.01765264,87474.0,87460.0,0.13297841]
[1769397948479,0.01143209,87473.0,87461.0,0.00044924]
[1769397948672,0.01765264,87472.0,87460.0,0.13297841]
[1769397948885,0.05724431,87476.0,87460.0,0.13297841]
[1769397948886,0.01143275,87468.0,87460.0,0.13297841]
[1769397949093,0.05716899,87460.0,87459.0,0.0001477]
[1769397949303,0.0114334,87463.0,87459.0,0.0001477]
[1769397949733,0.01143275,87468.0,87459.0,0.0001477]
[1769397951341,0.01765264,87467.0,87459.0,0.0001477]
[1769397952246,0.01765264,87468.0,87459.0,0.0001477]
[1769397952472,0.01143262,87469.0,87457.0,0.01417071]
[1769397952752,0.01765264,87468.0,87457.0,0.01417071]
[1769397952953,0.02908539,87468.0,87457.0,0.01417071]
[1769397953386,0.01765264,87468.0,87457.0,0.01417071]
[1769397953595,0.01143275,87468.0,87457.0,0.15063121]
[1769397954708,0.01143301,87466.0,87457.0,0.1364605]
[1769397954915,0.01765264,87465.0,87457.0,0.1364605]
[1769397955085,0.02908578,87465.0,87457.0,0.1364605]
[1769397955718,0.01765264,87465.0,87457.0,0.1364605]
[1769397955905,0.01765264,87466.0,87457.0,0.1364605]
[1769397956419,0.01765264,87467.0,87457.0,0.1364605]
[1769397956770,0.02908552,87467.0,87457.0,0.1364605]
[1769397957423,0.01143301,87466.0,87457.0,0.1364605]
[1769397957629,0.01765264,87465.0,87457.0,0.1364605]
[1769397957844,0.01143314,87465.0,87457.0,0.1364605]
[1769397958045,0.0114334,87463.0,87457.0,0.1364605]
[1769397958407,0.01143366,87461.0,87457.0,0.1364605]
[1769397958937,0.01143405,87458.0,87452.0,0.0002]
[1769397959083,0.01143432,87456.0,87452.0,0.0002]
[1769397959288,0.01143419,87457.0,87452.0,0.0002]
[1769397959540,0.01143432,87456.0,87452.0,0.0002]
[1769397959713,0.01143432,87456.0,87447.0,9.618e-05]
[1769397959714,0.01143445,87455.0,87447.0,9.618e-05]
[1769397959913,0.01143471,87453.0,87447.0,9.618e-05]
[1769397960320,0.06860827,87453.0,87447.0,9.618e-05]
[1769397960518,0.01143471,87453.0,87447.0,9.618e-05]
[1769397960721,0.01143458,87454.0,87447.0,9.618e-05]
[1769397960922,0.01143471,87453.0,87447.0,9.618e-05]
[1769397961322,0.01143419,87457.0,87447.0,9.618e-05]
[1769397961762,0.01143432,87456.0,87447.0,9.618e-05]
[1769397962172,0.01143445,87455.0,87447.0,9.618e-05]
[1769397962649,0.01143471,87453.0,87447.0,9.618e-05]
[1769397963080,0.01143458,87454.0,87447.0,9.618e-05]
[1769397963247,0.01143471,87453.0,87447.0,9.618e-05]
[1769397963647,0.01143458,87454.0,87447.0,9.618e-05]
[1769397963946,0.01143445,87455.0,87447.0,9.618e-05]
[1769397964163,0.01143432,87456.0,87447.0,9.618e-05]
[1769397964363,0.01143445,87455.0,87447.0,9.618e-05]
[1769397964588,0.01143432,87456.0,87447.0,9.618e-05]
[1769397964819,0.01143445,87455.0,87447.0,9.618e-05]
[1769397965239,0.0114351,87450.0,87447.0,4.809e-05]
[1769397965384,0.01143549,87447.0,87436.0,4.903e-05]
[1769397965570,0.00426024,87449.0,87436.0,4.903e-05]
[1769397965772,0.01143497,87451.0,87438.0,0.13825809]
[1769397965975,0.01143497,87451.0,87440.0,0.13829637]
[1769397966177,0.01143484,87452.0,87440.0,0.13829637]
[1769397966387,0.06860749,87454.0,87442.0,0.13829637]
[1769397966388,0.01143458,87454.0,87442.0,0.13829637]
[1769397966633,0.00014058,87454.0,87444.0,0.13829637]
[1769397966809,0.00014058,87454.0,87444.0,0.15149791]
[1769397967013,0.01779322,87454.0,87444.0,0.13829637]
[1769397967511,0.01779322,87454.0,87444.0,0.15150231]
[1769397967764,0.00014058,87454.0,87445.0,1.04953473]
[1769397968028,0.00014058,87454.0,87447.0,0.13830735]
[1769397971895,0.07542981,87465.0,87447.0,0.13830735]
[1769397971896,0.01143262,87469.0,87457.0,0.13706854]
[1769397972098,0.01143262,87469.0,87457.0,0.13753765]
[1769397972099,0.01826349,87465.0,87457.0,0.13753765]
[1769397972268,0.02969663,87465.0,87457.0,0.13753765]
[1769397972829,0.01143327,87464.0,87457.0,0.13753765]
[1769397972951,0.01143353,87462.0,87457.0,0.00046911]
[1769397973551,0.0114334,87463.0,87457.0,0.00046911]
[1769397974263,0.02969663,87465.0,87457.0,0.00046911]
[1769397974468,0.01143327,87464.0,87457.0,0.00046911]
[1769397974663,0.02969663,87465.0,87457.0,0.00046911]
[1769397974886,0.01143327,87464.0,87457.0,0.00046911]
[1769397975391,0.02969663,87465.0,87457.0,0.00046911]
[1769397975792,0.01826349,87465.0,87457.0,0.00046911]
[1769397976673,0.02969663,87465.0,87457.0,0.00046911]
[1769397976870,0.01826349,87465.0,87457.0,0.00046911]
[1769397977279,0.01826349,87465.0,87457.0,1e-08]
[1769397977280,0.01143379,87460.0,87457.0,1e-08]
[1769397977511,0.02187553,87458.0,87457.0,1e-08]
[1769397978409,0.07904582,87458.0,87457.0,1e-08]
[1769397978603,0.02187553,87458.0,87457.0,1e-08]
[1769397978809,0.07904529,87459.0,87457.0,1e-08]
[1769397979012,0.02187553,87458.0,87457.0,1e-08]
[1769397979882,0.06476322,87458.0,87457.0,1e-08]
[1769397980084,0.06476322,87458.0,87428.0,0.00311773]
[1769397980085,0.01143589,87444.0,87430.0,0.12890858]
[1769397980313,0.01143654,87439.0,87428.0,0.00311773]
[1769397980485,0.0571886,87430.0,87428.0,0.00311773]
[1769397980685,0.01143693,87436.0,87430.0,0.01]
[1769397980885,0.01143641,87440.0,87430.0,0.01]
[1769397981361,0.01143667,87438.0,87430.0,0.01]
[1769397981570,0.01143706,87435.0,87430.0,0.01]
[1769397981821,0.0114368,87437.0,87430.0,0.01]
[1769397982034,0.01143706,87435.0,87430.0,0.01]
[1769397982252,0.01143732,87433.0,87430.0,0.01]
[1769397982451,0.01143719,87434.0,87424.0,0.12606486]
[1769397982908,0.09082072,87458.0,87424.0,0.12606486]
[1769397983170,0.01143575,87445.0,87432.0,0.12606486]
[1769397983370,0.01143549,87447.0,87436.0,0.12606486]
[1769397983576,0.01143575,87445.0,87436.0,0.12606486]
[1769397983766,0.01112492,87444.0,87436.0,0.12606486]
[1769397983976,0.01143602,87443.0,87436.0,0.12606486]
[1769397984541,0.01143575,87445.0,87436.0,0.12606486]
[1769397984801,0.01143589,87444.0,87436.0,0.12606486]
[1769397985024,0.01143549,87447.0,87436.0,0.14893873]
[1769397985421,0.01143575,87445.0,87436.0,0.14893873]
[1769397985617,0.01143549,87447.0,87436.0,0.14893873]
[1769397985816,0.01143575,87445.0,87436.0,0.14893873]
[1769397986836,0.01143615,87442.0,87436.0,0.14893873]
[1769397987090,0.01143615,87442.0,87436.0,0.12606486]
[1769397987383,0.01143628,87441.0,87436.0,0.12606486]
[1769397987524,0.01143602,87443.0,87436.0,0.12606486]
[1769397987722,0.01143615,87442.0,87436.0,0.12606486]
[1769397987926,0.01143628,87441.0,87436.0,0.12606486]
[1769397988251,0.01143615,87442.0,87436.0,0.12606486]
[1769397988456,0.01143628,87441.0,87436.0,0.12606486]
[1769397989040,0.01143641,87440.0,87436.0,0.12606486]
[1769397989265,0.01143654,87439.0,87436.0,0.12606486]
[1769397989475,0.01143641,87440.0,87436.0,0.12606486]
[1769397989680,0.01143628,87441.0,87436.0,0.12606486]
[1769397990208,0.01143641,87440.0,87436.0,0.12606486]
[1769397990422,0.02859037,87442.0,87436.0,0.12606486]
[1769397990747,0.01143628,87441.0,87436.0,0.12606486]
[1769397990948,0.03971556,87442.0,87436.0,0.12606486]
[1769397991794,0.02827941,87442.0,87436.0,0.12606486]
[1769397992215,0.03971556,87442.0,87436.0,0.12606486]
[1769397992810,0.01143628,87441.0,87430.0,0.62734183]
[1769397993132,0.01143628,87441.0,87430.0,0.11346979]
[1769397994104,0.02827941,87442.0,87431.0,0.11291948]
[1769397994297,0.01143654,87439.0,87424.0,0.00046911]
[1769397994498,0.02828007,87440.0,87425.0,0.11291948]
[1769397994700,0.02828007,87440.0,87430.0,0.51387204]
[1769397994899,0.02827909,87443.0,87431.0,0.11291948]
[1769397995099,0.03971511,87443.0,87431.0,0.97096103]
[1769397995305,0.02827909,87443.0,87432.0,0.97096103]
[1769397995508,0.02827909,87443.0,87433.0,0.11291948]
[1769397995888,0.01143575,87445.0,87433.0,0.11291948]
[1769397996088,0.01143562,87446.0,87433.0,0.11291948]
[1769397996328,0.0147045,87445.0,87434.0,0.11291948]
[1769397996537,0.00326875,87445.0,87434.0,0.11291948]
[1769397996737,0.01143589,87444.0,87434.0,0.97096103]
[1769397997074,0.00326875,87443.0,87435.0,0.11291948]
[1769397997282,0.00326875,87444.0,87435.0,0.11291948]
[1769397997458,0.01143602,87443.0,87435.0,0.11291948]
[1769397997636,0.00326875,87442.0,87435.0,0.11291948]
[1769397997844,0.01470464,87444.0,87435.0,0.11291948]
[1769397998615,0.00326875,87444.0,87435.0,0.11291948]
[1769397999056,0.01143615,87442.0,87435.0,0.11291948]
[1769397999256,0.00326875,87441.0,87435.0,0.11291948]
[1769397999870,0.0147049,87442.0,87435.0,0.11291948]
[1769398000253,0.01143628,87441.0,87435.0,0.11291948]
[1769398000596,0.01470516,87440.0,87435.0,0.11291948]
[1769398000810,0.00326875,87440.0,87435.0,0.11291948]
[1769398000998,0.01470503,87441.0,87435.0,0.11291948]
[1769398001208,0.00326875,87441.0,87435.0,0.11291948]
[1769398001557,0.00326875,87443.0,87435.0,0.11291948]
[1769398001798,0.01470477,87443.0,87435.0,0.11291948]
[1769398002142,0.00326875,87443.0,87435.0,0.11291948]
[1769398002556,0.00326875,87445.0,87435.0,0.11291948]
[1769398002701,0.01143536,87448.0,87436.0,0.13579335]
[1769398002901,0.01143562,87446.0,87436.0,0.13579335]
[1769398003527,0.01143549,87447.0,87436.0,0.13579335]
[1769398003888,0.01143562,87446.0,87436.0,0.10711948]
[1769398004090,0.01143562,87446.0,87436.0,0.08974458]
[1769398004377,0.01143562,87446.0,87436.0,0.10676253]
[1769398004504,0.01143575,87445.0,87436.0,0.10676253]
[1769398004716,0.01143589,87444.0,87436.0,0.10676253]
[1769398004916,0.01143589,87444.0,87437.0,0.01701776]
[1769398005354,0.01143575,87445.0,87437.0,0.01701776]
[1769398005544,0.01143589,87444.0,87437.0,0.01701776]
[1769398005785,0.01143575,87445.0,87436.0,0.07807597]
[1769398005929,0.01143575,87445.0,87437.0,0.00561158]
[1769398006129,0.01143589,87444.0,87437.0,0.00561158]
[1769398006429,0.01143575,87445.0,87437.0,0.00561158]
[1769398006625,0.01143589,87444.0,87437.0,0.00561158]
[1769398007236,0.01143602,87443.0,87437.0,0.00561158]
[1769398007838,0.01143615,87442.0,87437.0,0.00561158]
[1769398008040,0.01143602,87443.0,87437.0,0.00561158]
[1769398008198,0.01143589,87444.0,87437.0,0.00561158]
[1769398008485,0.01143602,87443.0,87437.0,0.00561158]
[1769398008853,0.01143615,87442.0,87437.0,0.00561158]
[1769398009273,0.01143602,87443.0,87437.0,0.00280579]
[1769398009446,0.01143589,87444.0,87437.0,0.00280579]
[1769398010075,0.01143575,87445.0,87437.0,0.00280579]
[1769398010648,0.01143602,87443.0,87437.0,0.00280579]
[1769398011046,0.01143575,87445.0,87437.0,0.00280579]
[1769398011301,0.01143589,87444.0,87437.0,0.00280579]
[1769398013601,0.01143575,87445.0,87437.0,0.00280579]
[1769398013806,0.01143589,87444.0,87437.0,0.00280579]
[1769398014735,0.06861564,87444.0,87437.0,0.00394947]
[1769398015031,0.01143615,87442.0,87437.0,0.00394947]
[1769398015342,0.0285907,87441.0,87437.0,0.00394947]
[1769398015491,0.04002607,87443.0,87432.0,0.02287491]
[1769398015698,0.02859005,87443.0,87432.0,0.02287491]
[1769398015914,0.01143628,87441.0,87432.0,0.02287491]
[1769398016117,0.01143615,87442.0,87432.0,0.02287491]
[1769398016324,0.0285907,87441.0,87432.0,0.02287491]
[1769398016757,0.01143628,87441.0,87432.0,0.02287491]
[1769398016976,0.04002652,87442.0,87432.0,0.02287491]
[1769398017191,0.01143641,87440.0,87432.0,0.02287491]
[1769398017402,0.02859103,87440.0,87432.0,0.02287491]
[1769398018247,0.04002698,87441.0,87432.0,0.02287491]
[1769398018703,0.01143641,87440.0,87432.0,0.02287491]
[1769398018877,0.04002698,87441.0,87432.0,0.02287491]
[1769398019431,0.01143641,87440.0,87432.0,0.02287491]
[1769398019569,0.04002698,87441.0,87432.0,0.02287491]
[1769398019792,0.01143641,87440.0,87432.0,0.02287491]
[1769398019995,0.0571801,87443.0,87432.0,0.02287491]
[1769398020405,0.01143654,87439.0,87431.0,0.11291948]
[1769398020621,0.01143641,87440.0,87431.0,0.11291948]
[1769398020850,0.01143654,87439.0,87431.0,0.11291948]
[1769398021233,0.01143667,87438.0,87424.0,0.00046911]
[1769398021431,0.01143667,87438.0,87427.0,0.11291948]
[1769398021649,0.00039496,87440.0,87427.0,0.97096103]
[1769398021869,0.01143628,87441.0,87431.0,0.11291948]
[1769398022029,0.01143628,87441.0,87424.0,0.00046911]
[1769398022030,0.01143628,87441.0,87435.0,0.11291948]
[1769398022230,0.01143615,87442.0,87435.0,0.11291948]
[1769398022693,0.01143602,87443.0,87435.0,0.11291948]
[1769398022905,0.01143589,87444.0,87435.0,0.11291948]
[1769398024682,0.01143575,87445.0,87435.0,0.11291948]
[1769398025365,0.01143562,87446.0,87435.0,0.11291948]
[1769398025568,0.11371016,87445.0,87435.0,0.11291948]
[1769398025891,0.01143575,87445.0,87435.0,0.11291948]
[1769398026230,0.0114351,87450.0,87435.0,0.11291948]
[1769398026512,0.17088773,87449.0,87436.0,0.02287387]
[1769398026635,0.1137115,87448.0,87436.0,0.02287387]
[1769398028480,0.01143549,87447.0,87436.0,0.02287387]
[1769398029021,0.01143562,87446.0,87436.0,0.02287387]
[1769398029470,0.01143575,87445.0,87436.0,0.02287387]
[1769398029625,0.01143562,87446.0,87436.0,0.02287387]
[1769398029833,0.01143549,87447.0,87436.0,0.02287387]
[1769398030165,0.11373671,87446.0,87436.0,0.02287387]
[1769398030385,0.01143536,87448.0,87436.0,0.02287387]
[1769398030649,0.1137357,87447.0,87436.0,0.02287387]
[1769398030796,0.1137357,87446.0,87436.0,0.02287387]
[1769398031016,0.01143471,87453.0,87437.0,0.11460625]
[1769398031216,0.12516987,87452.0,87439.0,0.11460625]
[1769398031499,0.11373503,87451.0,87439.0,0.11460625]
[1769398031670,0.11373503,87450.0,87439.0,0.11460625]
[1769398031874,0.11373503,87449.0,87439.0,0.11460625]
[1769398032092,0.11373503,87448.0,87439.0,0.11460625]
[1769398032238,0.14956435,87455.0,87439.0,0.11460625]
[1769398032533,0.1609988,87455.0,87439.0,0.11460625]
[1769398032736,0.01143471,87453.0,87439.0,0.11460625]
[1769398033057,0.01143471,87453.0,87439.0,0.13747933]
[1769398033429,0.01143458,87454.0,87439.0,0.13747933]
[1769398033638,0.01143471,87453.0,87439.0,0.13747933]
[1769398033989,0.16099893,87454.0,87439.0,0.13747933]
[1769398034164,0.01143471,87453.0,87439.0,0.13747933]
[1769398034368,0.01143484,87452.0,87439.0,0.13747933]
[1769398034664,0.01143471,87453.0,87439.0,0.13747933]
[1769398034869,0.01143484,87452.0,87439.0,0.13747933]
[1769398035093,0.16099893,87454.0,87439.0,0.13747933]
[1769398035390,0.01143497,87451.0,87439.0,0.13747933]
[1769398035586,0.01143484,87452.0,87439.0,0.13747933]
[1769398035820,0.01143471,87453.0,87439.0,0.13747933]
[1769398036142,0.01143484,87452.0,87439.0,0.13747933]
[1769398037253,0.01143471,87453.0,87439.0,0.13747933]
[1769398037474,0.01143471,87453.0,87428.0,0.01143798]
[1769398037475,0.0002394,87459.0,87445.0,0.10987718]
[1769398037673,0.0002394,87459.0,87452.0,0.10987718]
[1769398037875,0.0002394,87459.0,87455.0,0.97036497]
[1769398038077,0.0002394,87459.0,87455.0,1.08024215]
[1769398038641,0.0002394,87459.0,87455.0,0.10987718]
[1769398038771,0.01143327,87464.0,87455.0,0.10987718]
[1769398039383,0.01143301,87466.0,87455.0,0.10987718]
[1769398039781,0.0004,87579.0,87455.0,0.10987718]
[1769398040008,0.01143222,87472.0,87456.0,0.10987718]
[1769398040205,0.01143209,87473.0,87456.0,0.10987718]
[1769398040413,0.01143196,87474.0,87456.0,0.97036497]
[1769398040609,0.01143196,87474.0,87457.0,0.10987718]
[1769398040928,0.01143157,87477.0,87461.0,0.10987718]
[1769398041268,0.01143183,87475.0,87462.0,0.10987718]
[1769398041474,0.01143157,87477.0,87462.0,0.10987718]
[1769398041744,0.0114317,87476.0,87462.0,0.10987718]
[1769398041922,0.01143144,87478.0,87462.0,0.10987718]
[1769398042105,0.01143157,87477.0,87463.0,0.97036497]
[1769398042323,0.0001641,87479.0,87463.0,0.97036497]
[1769398042324,0.0001641,87479.0,87464.0,0.10987718]
[1769398042534,0.01159541,87479.0,87465.0,0.97036497]
[1769398042756,0.01159541,87479.0,87466.0,0.10987718]
[1769398042960,0.01143183,87475.0,87466.0,0.10987718]
[1769398043164,0.01143262,87469.0,87466.0,0.09987718]
[1769398043365,0.01143262,87469.0,87455.0,0.10987718]
[1769398043565,0.01143262,87469.0,87456.0,0.10987718]
[1769398043966,0.01143249,87470.0,87456.0,0.10987718]
[1769398044166,0.01143288,87467.0,87457.0,0.10987718]
[1769398044722,0.14956435,87475.0,87450.0,0.51421254]
[1769398044723,0.0001641,87488.0,87472.0,0.98179719]
[1769398044915,0.00030484,87488.0,87475.0,0.10987718]
[1769398045056,0.00030484,87488.0,87470.0,0.51421254]
[1769398045057,0.00030484,87488.0,87477.0,0.10987718]
[1769398046191,0.01143053,87485.0,87477.0,0.10987718]
[1769398046501,0.0114304,87486.0,87477.0,0.10987718]
[1769398046899,0.01143026,87487.0,87477.0,0.10987718]
[1769398047347,0.01157087,87488.0,87477.0,0.10987718]
[1769398047520,0.01143026,87487.0,87477.0,0.10987718]
[1769398048225,0.01157087,87488.0,87477.0,0.10987718]
[1769398048226,0.00014074,87488.0,87477.0,0.10987718]
[1769398048438,0.00014074,87488.0,87478.0,0.10987718]
[1769398051078,0.05714551,87496.0,87478.0,0.10987718]
[1769398051283,0.01142974,87491.0,87478.0,0.10987718]
[1769398051489,0.01142961,87492.0,87478.0,0.10987718]
[1769398051854,0.01142948,87493.0,87480.0,0.51421254]
[1769398051984,0.01153111,87495.0,87482.0,0.10987718]
[1769398052186,0.01142948,87493.0,87483.0,0.10987718]
[1769398052388,0.01153111,87495.0,87483.0,0.10987718]
[1769398052611,0.00010189,87495.0,87483.0,0.10987718]
[1769398052813,0.00010189,87495.0,87483.0,0.97036497]
[1769398053017,0.00010189,87495.0,87486.0,0.10987718]
[1769398053198,0.00010189,87495.0,87488.0,1.01357273]
[1769398053395,0.00010189,87495.0,87490.0,0.12431992]
[1769398053594,0.00010189,87495.0,87492.0,0.12431992]
[1769398054020,0.0002617,87505.0,87492.0,1.01357273]
[1769398054360,0.0002617,87505.0,87493.0,0.12431992]
[1769398054769,0.0002617,87505.0,87494.0,1.01357273]
[1769398054973,0.0002617,87505.0,87495.0,0.12431992]
[1769398055328,0.01142857,87500.0,87495.0,0.12431992]
[1769398055697,0.01142961,87492.0,87486.0,1.01357273]
[1769398055827,0.01142935,87494.0,87486.0,1.13799454]
[1769398056169,0.01142961,87492.0,87486.0,1.13799454]
[1769398056767,0.01142974,87491.0,87486.0,1.01367462]
[1769398056975,0.01142974,87491.0,87487.0,1.01357273]
[1769398057132,0.01142961,87492.0,87488.0,0.12431992]
[1769398057747,0.01142974,87491.0,87488.0,0.12431992]
[1769398058061,0.01142987,87490.0,87486.0,0.00010189]
[1769398058280,0.01142948,87493.0,87486.0,0.00010189]
[1769398058508,0.01142961,87492.0,87486.0,0.00010189]
[1769398058733,0.01142948,87493.0,87486.0,0.12442181]
[1769398058980,0.01142948,87493.0,87487.0,1.01357273]
[1769398059156,0.01142909,87496.0,87487.0,1.01357273]
[1769398059363,0.01142896,87497.0,87488.0,0.12431992]
[1769398059729,0.01142883,87498.0,87488.0,0.12431992]
[1769398060390,0.0114287,87499.0,87489.0,1.15593064]
[1769398060694,0.0114287,87499.0,87490.0,0.12431992]
[1769398060900,0.01142831,87502.0,87491.0,1.03161031]
[1769398061051,0.22856629,87502.0,87491.0,0.12431992]
[1769398061220,0.01142909,87496.0,87491.0,0.12431992]
[1769398062248,0.01142896,87497.0,87491.0,0.12431992]
[1769398062459,0.01142909,87496.0,87491.0,0.12431992]
[1769398062859,0.01142922,87495.0,87491.0,0.12431992]
[1769398063075,0.01142909,87496.0,87491.0,0.12431992]
[1769398063676,0.01142922,87495.0,87491.0,0.12431992]
[1769398063873,0.05714416,87498.0,87491.0,0.12431992]
[1769398064078,0.01142909,87496.0,87491.0,0.12431992]
[1769398064421,0.01142896,87497.0,87491.0,0.12431992]
[1769398065040,0.01142922,87495.0,87491.0,0.12431992]
[1769398065219,0.01142909,87496.0,87491.0,0.12431992]
[1769398065620,0.01142922,87495.0,87491.0,0.12431992]
[1769398065817,0.01142909,87496.0,87491.0,0.12431992]
[1769398066024,0.01142896,87497.0,87491.0,0.12431992]
[1769398066333,0.01142909,87496.0,87491.0,0.12431992]
[1769398066867,0.01142896,87497.0,87491.0,0.12431992]
[1769398067918,0.01142909,87496.0,87491.0,0.12431992]
[1769398068466,0.01142922,87495.0,87491.0,0.12431992]
[1769398068662,0.01142935,87494.0,87491.0,0.12431992]
[1769398068897,0.01142883,87498.0,87493.0,0.12431992]
[1769398069076,0.01142896,87497.0,87494.0,0.0180441]
[1769398069275,0.01142883,87498.0,87494.0,0.0180441]
[1769398069459,0.01142909,87496.0,87490.0,0.01805053]
[1769398069860,0.01142909,87496.0,87490.0,0.14237045]
[1769398070057,0.01142896,87497.0,87490.0,0.14237045]
[1769398070298,0.01142883,87498.0,87490.0,0.14237045]
[1769398070505,0.01142896,87497.0,87490.0,0.14237045]
[1769398070713,0.01142909,87496.0,87490.0,0.14237045]
[1769398071479,0.01142896,87497.0,87490.0,0.14237045]
[1769398071706,0.01142922,87495.0,87490.0,0.14237045]
[1769398072274,0.01142948,87493.0,87490.0,0.14237045]
[1769398072505,0.01142922,87495.0,87490.0,0.14237045]
[1769398073162,0.01142909,87496.0,87490.0,0.14237045]
[1769398073341,0.01142922,87495.0,87490.0,0.14237045]
[1769398073601,0.01142935,87494.0,87490.0,0.14237045]
[1769398073832,0.01142948,87493.0,87490.0,0.14237045]
[1769398074025,0.01142935,87494.0,87490.0,0.14237045]
[1769398074428,0.01142922,87495.0,87490.0,0.14237045]
[1769398074665,0.01142909,87496.0,87490.0,0.14237045]
[1769398074806,0.01142935,87494.0,87490.0,0.14237045]
[1769398074999,0.01143,87489.0,87486.0,0.00010189]
[1769398075223,0.36102565,87489.0,87486.0,0.00010189]
[1769398075405,0.41817569,87489.0,87486.0,0.00010189]
[1769398075636,0.19934794,87489.0,87486.0,0.00010189]
[1769398075832,0.06858004,87489.0,87486.0,0.00010189]
[1769398076758,0.05715134,87487.0,87486.0,0.00010189]
[1769398077200,0.05715134,87487.0,87486.0,5.095e-05]
[1769398077992,0.0114304,87486.0,87475.0,0.12431992]
[1769398078196,0.01143144,87478.0,87475.0,0.00014074]
[1769398078763,0.01143144,87478.0,87471.0,0.04572]
[1769398078966,0.01143144,87478.0,87462.0,0.1756]
[1769398078967,0.06859336,87472.0,87462.0,0.1756]
[1769398079161,0.01143222,87472.0,87462.0,0.1756]
[1769398079606,0.01143157,87477.0,87462.0,0.1756]
[1769398079766,0.01143157,87477.0,87472.0,0.01]
[1769398080377,0.01143118,87480.0,87466.0,1.01357273]
[1769398080620,0.01157181,87480.0,87470.0,0.51363249]
[1769398080801,0.00014063,87480.0,87471.0,0.01348826]
[1769398081010,0.00014063,87480.0,87470.0,0.51363249]
[1769398081210,0.01143013,87488.0,87480.0,0.00014063]
[1769398081408,0.01143026,87487.0,87481.0,1.13789265]
[1769398081632,0.01143013,87488.0,87482.0,0.01233024]
[1769398081848,0.01142987,87490.0,87479.0,1.13789265]
[1769398082060,0.01142987,87490.0,87480.0,0.01347364]
[1769398082452,0.01143,87489.0,87480.0,0.01347364]
[1769398082673,0.0114304,87486.0,87480.0,0.01347364]
[1769398083023,0.00802987,87490.0,87480.0,0.01347364]
[1769398083222,0.01143013,87488.0,87480.0,0.52710613]
[1769398083431,0.01143013,87488.0,87479.0,1.13789265]
[1769398083632,0.00802987,87490.0,87480.0,0.0112209]
[1769398083816,0.01143,87489.0,87480.0,0.0112209]
[1769398084272,0.01142974,87491.0,87480.0,0.0112209]
[1769398084506,0.01142987,87490.0,87481.0,1.1621374]
[1769398084718,0.01142987,87490.0,87482.0,0.01122064]
[1769398084894,0.01143,87489.0,87482.0,0.01122064]
[1769398085095,0.01143026,87487.0,87481.0,1.1621374]
[1769398085334,0.01143066,87484.0,87471.0,1.04250764]
[1769398085532,0.01143066,87484.0,87473.0,1.1621374]
[1769398085860,0.01143118,87480.0,87471.0,0.00014063]
[1769398086067,0.01143131,87479.0,87465.0,0.11962976]
[1769398086537,0.01143118,87480.0,87466.0,0.0011433]
[1769398086681,0.01143118,87480.0,87466.0,1.04365094]
[1769398086891,0.01143118,87480.0,87466.0,1.1621374]
[1769398087092,0.01143131,87479.0,87466.0,1.1621374]